fUST/lending_fUST_20250526
["ID","MTS","AMOUNT","RATE_DAILY","PERIOD"]
[362372551,1748225444472,-501.92673865,0.00019475,2]
[362372552,1748225444482,-532.59856975,0.00019475,2]
[362372553,1748225444493,-503.74243186,0.00019482,2]
[362372554,1748225444502,-202.05395924,0.00019626,2]
[362372555,1748225444513,-430.0,0.00019726,2]
[362372556,1748225444523,-440.7707812,0.00019726,2]
[362372557,1748225444533,-575.62793655,0.00019726,2]
[362372558,1748225444543,-437.11195615,0.00019726,2]
[362372559,1748225444552,-430.0,0.00019726,2]
[362372560,1748225444562,-430.0,0.00019726,2]
[362372561,1748225444571,-430.0,0.00019726,2]
[362372562,1748225444582,-430.0,0.00019726,2]
[362372563,1748225444592,-243.32302616,0.00019726,2]
[362372564,1748225444699,-186.67697384,0.00019726,2]
[362372565,1748225444709,-430.0,0.00019726,2]
[362372566,1748225444719,-430.0,0.00019726,2]
[362372567,1748225444730,-430.0,0.00019726,2]
[362372568,1748225444739,-430.0,0.00019726,2]
[362372569,1748225444750,-430.0,0.00019726,2]
[362372570,1748225444759,-430.0,0.00019726,2]
[362372571,1748225444770,-507.86519041,0.00019726,2]
[362372572,1748225444779,-430.0,0.00019726,2]
[362372573,1748225444791,-430.0,0.00019726,2]
[362372574,1748225444801,-430.0,0.00019726,2]
[362372575,1748225444811,-430.0,0.00019726,2]
[362372576,1748225444820,-410.0,0.00019726,2]
[362372577,1748225444830,-430.0,0.00019726,2]
[362372578,1748225444840,-430.0,0.00019726,2]
[362372579,1748225444851,-430.0,0.00019726,2]
[362372580,1748225444861,-430.0,0.00019726,2]
[362372581,1748225444870,-430.0,0.00019726,2]
[362372582,1748225444880,-186.01289239,0.00019726,2]
[362372583,1748225444892,-243.98710761,0.00019726,2]
[362372584,1748225444903,-430.0,0.00019726,2]
[362372585,1748225444913,-430.0,0.00019726,2]
[362372586,1748225444923,-516.93897582,0.00019726,2]
[362372587,1748225444935,-430.0,0.00019726,2]
[362372588,1748225444945,-430.0,0.00019726,2]
[362372589,1748225444955,-430.0,0.00019726,2]
[362372590,1748225444965,-430.0,0.00019726,2]
[362372591,1748225444975,-430.0,0.00019726,2]
[362372592,1748225444986,-430.0,0.00019726,2]
[362372593,1748225444997,-430.0,0.00019726,2]
[362372594,1748225445007,-430.0,0.00019726,2]
[362372595,1748225445017,-430.0,0.00019726,2]
[362372596,1748225445029,-430.0,0.00019726,2]
[362372597,1748225445039,-430.0,0.00019726,2]
[362372598,1748225445051,-430.0,0.00019726,2]
[362372599,1748225445060,-430.0,0.00019726,2]
[362372600,1748225445070,-480.55,0.00019726,2]
[362372601,1748225445080,-570.527233,0.00019726,2]
[362372602,1748225445090,-570.527233,0.00019726,2]
[362372603,1748225445100,-430.0,0.00019726,2]
[362372604,1748225445110,-357.52,0.00019726,2]
[362372605,1748225445120,-162.73009233,0.00019726,2]
[362372606,1748225445134,-267.26990767,0.00019726,2]
[362372607,1748225445144,-430.0,0.00019726,2]
[362372608,1748225445153,-430.0,0.00019726,2]
[362372609,1748225445164,-430.0,0.00019726,2]
[362372610,1748225445174,-436.99387,0.00019726,2]
[362372611,1748225445184,-430.0,0.00019726,2]
[362372612,1748225445194,-430.0,0.00019726,2]
[362372613,1748225445203,-430.0,0.00019726,2]
[362372614,1748225445213,-199.04,0.00019726,2]
[362372615,1748225445223,-437.26459024,0.00019726,2]
[362372616,1748225445233,-490.0,0.00019726,2]
[362372617,1748225445243,-439.297828,0.00019726,2]
[362372618,1748225445253,-430.0,0.00019726,2]
[362372619,1748225445264,-470.0,0.00019726,2]
[362372620,1748225445274,-430.0,0.00019726,2]
[362372622,1748225445284,-434.70349535,0.00019726,2]
[362372624,1748225445294,-430.0,0.00019726,2]
[362372626,1748225445304,-435.06992057,0.00019726,2]
[362372628,1748225445313,-430.0,0.00019726,2]
[362372631,1748225445323,-437.5903488,0.00019726,2]
[362372633,1748225445334,-430.0,0.00019726,2]
[362372635,1748225445343,-430.0,0.00019726,2]
[362372637,1748225445353,-430.0,0.00019726,2]
[362372639,1748225445363,-430.0,0.00019726,2]
[362372640,1748225445373,-430.0,0.00019726,2]
[362372641,1748225445383,-430.0,0.00019726,2]
[362372642,1748225445392,-553.55,0.00019726,2]
[362372643,1748225445402,-682.25,0.00019726,2]
[362372644,1748225445413,-184.2180788,0.00019726,2]
[362372645,1748225445422,-430.0,0.00019726,2]
[362372646,1748225445432,-320.37,0.00019726,2]
[362372647,1748225445441,-428.46050289,0.00019726,2]
[362372648,1748225445452,-430.0,0.00019726,2]
[362372649,1748225445461,-1641.65,0.00019726,2]
[362372650,1748225445471,-430.0,0.00019726,2]
[362372651,1748225445482,-430.0,0.00019726,2]
[362372652,1748225445491,-2359.14,0.00019726,2]
[362372654,1748225445501,-412.01419336,0.00019726,2]
[362372656,1748225445511,-2484.5,0.00019726,2]
[362372658,1748225445521,-953.67,0.00019726,2]
[362372659,1748225445531,-430.0,0.00019726,2]
[362372660,1748225445541,-430.0,0.00019726,2]
[362372661,1748225445551,-430.0,0.00019726,2]
[362372662,1748225445560,-493.95,0.00019726,2]
[362372664,1748225445570,-1348.29,0.00019726,2]
[362372665,1748225445580,-430.0,0.00019726,2]
[362372667,1748225445589,-430.0,0.00019726,2]
[362372669,1748225445599,-430.0,0.00019726,2]
[362372671,1748225445608,-409.00657159,0.00019726,2]
[362372672,1748225445620,-430.0,0.00019726,2]
[362372673,1748225445631,-430.0,0.00019726,2]
[362372674,1748225445641,-430.0,0.00019726,2]
[362372675,1748225445651,-192.0,0.00019779,2]
[362372676,1748225445662,-202.05395924,0.00019899,2]
[362372677,1748225445672,-229.15402412,0.00019977,2]
[362372678,1748225445682,-423.08503179,0.00019977,2]
[362372679,1748225445692,-160.0,0.00019977,2]
[362372680,1748225445703,-894.64583333,0.00019977,2]
[362372681,1748225445713,-3721.49632292,0.0002,2]
[362372682,1748225445722,-461.12298244,0.0002,2]
[362372683,1748225445733,-283.21184435,0.0002,2]
[362372684,1748225445742,-430.0,0.0002,2]
[362372685,1748225445752,-430.0,0.0002,2]
[362372686,1748225445763,-282.71797149,0.0002,2]
[362372687,1748225445773,-430.0,0.0002,2]
[362372688,1748225445783,-682.25,0.0002,2]
[362372690,1748225445793,-1641.65,0.0002,2]
[362372692,1748225445803,-430.0,0.0002,2]
[362372693,1748225445813,-2359.14,0.0002,2]
[362372695,1748225445823,-2484.5,0.0002,2]
[362372696,1748225445833,-445.6108,0.0002,2]
[362372697,1748225445843,-445.6108,0.0002,2]
[362372698,1748225445853,-953.67,0.0002,2]
[362372699,1748225445864,-430.0,0.0002,2]
[362372701,1748225445874,-493.95,0.0002,2]
[362372702,1748225445885,-1348.29,0.0002,2]
[362372704,1748225445896,-452.81113301,0.0002,2]
[362372705,1748225445906,-430.0,0.0002,2]
[362372707,1748225445916,-191.6,0.00020053,2]
[362372710,1748225445926,-500.0,0.00020064,2]
[362372711,1748225445937,-202.05395924,0.00020173,2]
[362372712,1748225445947,-198.831397,0.00020187,2]
[362372713,1748225445957,-430.0,0.00020273,2]
[362372714,1748225445968,-682.25,0.00020273,2]
[362372715,1748225445978,-1641.65,0.00020273,2]
[362372716,1748225445987,-430.0,0.00020273,2]
[362372717,1748225445997,-2359.14,0.00020273,2]
[362372718,1748225446007,-2484.5,0.00020273,2]
[362372719,1748225446016,-953.67,0.00020273,2]
[362372720,1748225446026,-430.0,0.00020273,2]
[362372721,1748225446035,-493.95,0.00020273,2]
[362372722,1748225446045,-1348.29,0.00020273,2]
[362372723,1748225446055,-430.0,0.00020273,2]
[362372724,1748225446064,-430.0,0.00020547,2]
[362372725,1748225446074,-682.25,0.00020547,2]
[362372726,1748225446084,-1641.65,0.00020547,2]
[362372727,1748225446094,-430.0,0.00020547,2]
[362372728,1748225446103,-2359.14,0.00020547,2]
[362372729,1748225446113,-2484.5,0.00020547,2]
[362372730,1748225446123,-953.67,0.00020547,2]
[362372731,1748225446133,-497.49362669,0.00020547,2]
[362372732,1748225446142,-493.95,0.00020547,2]
[362372733,1748225446152,-1348.29,0.00020547,2]
[362372734,1748225446161,-430.0,0.00020547,2]
[362372735,1748225446171,-368.8,0.00020792,3]
[362372736,1748225446180,-570.527233,0.00020809,2]
[362372737,1748225446191,-570.527233,0.00020809,2]
[362372738,1748225446201,-445.6108,0.00020809,2]
[362372739,1748225446210,-445.6108,0.00020809,2]
[362372740,1748225446220,-2853.3,0.00020809,4]
[362372741,1748225446229,-2853.3,0.00020809,4]
[362372742,1748225446239,-2853.3,0.00020809,4]
[362372743,1748225446249,-2853.3,0.00020809,4]
[362372744,1748225446259,-2853.3,0.00020809,4]
[362372745,1748225446268,-2853.3,0.00020809,4]
[362372746,1748225446278,-2853.3,0.00020809,4]
[362372747,1748225446287,-2853.3,0.00020809,4]
[362372748,1748225446297,-737.6,0.00020812,3]
[362372749,1748225446306,-430.0,0.00020821,2]
[362372750,1748225446316,-682.25,0.00020821,2]
[362372751,1748225446325,-1641.65,0.00020821,2]
[362372752,1748225446335,-430.0,0.00020821,2]
[362372753,1748225446345,-2359.14,0.00020821,2]
[362372754,1748225446354,-2484.5,0.00020821,2]
[362372755,1748225446364,-953.67,0.00020821,2]
[362372756,1748225446374,-493.95,0.00020821,2]
[362372757,1748225446383,-1348.29,0.00020821,2]
[362372758,1748225446394,-430.0,0.00020821,2]
[362372759,1748225446403,-330.45883338,0.00021095,2]
[362372760,1748225446413,-682.25,0.00021095,2]
[362372761,1748225446423,-1641.65,0.00021095,2]
[362372762,1748225446433,-430.0,0.00021095,2]
[362372763,1748225446443,-2359.14,0.00021095,2]
[362372764,1748225446452,-2484.5,0.00021095,2]
[362372765,1748225446462,-953.67,0.00021095,2]
[362372766,1748225446472,-493.95,0.00021095,2]
[362372767,1748225446481,-1348.29,0.00021095,2]
[362372768,1748225446491,-430.0,0.00021095,2]
[362372769,1748225446502,-177.655,0.00021157,2]
[362372770,1748225446631,-500.0,0.0002116,2]
[362372771,1748225446643,-215.55,0.00021167,2]
[362372772,1748225446655,-306.8449643,0.00021178,2]
[362372773,1748225446666,-207.4,0.00021309,2]
[362372774,1748225446677,-682.25,0.00021369,2]
[362372775,1748225446690,-1641.65,0.00021369,2]
[362372776,1748225446701,-430.0,0.00021369,2]
[362372777,1748225446711,-2359.14,0.00021369,2]
[362372778,1748225446722,-2484.5,0.00021369,2]
[362372779,1748225446732,-953.67,0.00021369,2]
[362372780,1748225446743,-493.95,0.00021369,2]
[362372781,1748225446752,-1348.29,0.00021369,2]
[362372782,1748225446762,-430.0,0.00021369,2]
[362372783,1748225446774,-682.25,0.00021643,2]
[362372784,1748225446784,-1641.65,0.00021643,2]
[362372785,1748225446794,-430.0,0.00021643,2]
[362372786,1748225446803,-2359.14,0.00021643,2]
[362372787,1748225446813,-2484.5,0.00021643,2]
[362372788,1748225446823,-953.67,0.00021643,2]
[362372789,1748225446834,-493.95,0.00021643,2]
[362372790,1748225446846,-1348.29,0.00021643,2]
[362372791,1748225446855,-159.56204597,0.00021643,2]
[362372792,1748225446865,-600.0,0.00021783,2]
[362372793,1748225446875,-500.0,0.00021783,2]
[362372794,1748225446886,-1005.81,0.000218,3]
[362372795,1748225446900,-1814.49,0.000219,2]
[362372796,1748225446910,-4823.4312365,0.00021917,3]
[362372797,1748225446919,-570.527233,0.00021917,2]
[362372798,1748225446929,-570.527233,0.00021917,2]
[362372799,1748225446942,-500.0,0.00021917,2]
[362372800,1748225446952,-682.25,0.00021917,2]
[362372801,1748225446964,-1641.65,0.00021917,2]
[362372802,1748225446974,-4829.27,0.00021917,2]
[362372803,1748225446984,-430.0,0.00021917,2]
[362372804,1748225446993,-2359.14,0.00021917,2]
[362372805,1748225447003,-445.6108,0.00021917,2]
[362372806,1748225447013,-2484.5,0.00021917,2]
[362372807,1748225447023,-445.6108,0.00021917,2]
[362372808,1748225447032,-831.20096247,0.00021917,2]
[362372809,1748225447046,-122.46903753,0.00021917,2]
[362372810,1748225447056,-367.99798392,0.00021917,2]
[362372817,1748226220792,-300.0,0.00017869,2]
[362372842,1748226632291,-225.7961217,0.00018069,2]
[362372843,1748226632301,-384.819607,0.00018602,2]
[362372844,1748226632311,-286.64550806,0.00018603,2]
[362372845,1748226632322,-177.6223663,0.00018618,2]
[362372846,1748226632396,-358.6276337,0.00018618,2]
[362372847,1748226632406,-225.70789873,0.000189,2]
[362372848,1748226632415,-4427.75877368,0.00019078,2]
[362372849,1748226632425,-300.0,0.00019166,2]
[362372850,1748226632434,-300.0,0.00019167,2]
[362372851,1748226632444,-300.0,0.00019167,2]
[362372852,1748226632453,-1200.0,0.00019167,2]
[362372853,1748226632463,-4937.62830642,0.00019168,2]
[362372854,1748226632472,-737.6,0.00019168,3]
[362372855,1748226632481,-614.67,0.00019168,3]
[362372857,1748226632491,-307.33,0.00019168,3]
[362372860,1748226632500,-153.67,0.00019168,3]
[362372864,1748226632510,-461.03,0.00019168,3]
[362372867,1748226632520,-386.9202381,0.00019177,2]
[362372870,1748226632529,-368.90101851,0.00019177,2]
[362372871,1748226632539,-500.0,0.00019177,2]
[362372874,1748226632548,-500.0,0.00019177,2]
[362372875,1748226632558,-500.0,0.00019177,2]
[362372876,1748226632567,-266.11723152,0.00019177,2]
[362372877,1748226632576,-500.0,0.00019177,2]
[362372878,1748226632585,-500.0,0.00019177,2]
[362372879,1748226632595,-500.0,0.00019177,2]
[362372880,1748226632604,-375.79299025,0.00019177,2]
[362372881,1748226632613,-500.0,0.00019177,2]
[362372882,1748226632622,-500.0,0.00019177,2]
[362372883,1748226632632,-500.0,0.00019177,2]
[362372884,1748226632642,-320.05059923,0.00019177,2]
[362372885,1748226632651,-500.0,0.00019177,2]
[362372886,1748226632661,-500.0,0.00019177,2]
[362372887,1748226632671,-430.0,0.00019178,2]
[362372888,1748226632680,-408.17579691,0.00019178,2]
[362372889,1748226632690,-430.0,0.00019178,2]
[362372890,1748226632700,-448.48765858,0.00019178,2]
[362372891,1748226632709,-430.0,0.00019178,2]
[362372892,1748226632719,-430.0,0.00019178,2]
[362372893,1748226632728,-430.0,0.00019178,2]
[362372894,1748226632737,-430.0,0.00019178,2]
[362372895,1748226632747,-430.0,0.00019178,2]
[362372896,1748226632756,-400.1467619,0.00019178,2]
[362372897,1748226632766,-430.0,0.00019178,2]
[362372898,1748226632775,-430.0,0.00019178,2]
[362372899,1748226632784,-430.0,0.00019178,2]
[362372900,1748226632794,-552.62742014,0.00019178,2]
[362372901,1748226632803,-460.88034397,0.00019178,2]
[362372902,1748226632813,-430.0,0.00019178,2]
[362372903,1748226632822,-430.0,0.00019178,2]
[362372904,1748226632832,-430.0,0.00019178,2]
[362372905,1748226632841,-536.12713471,0.00019178,2]
[362372906,1748226632851,-360.97895571,0.00019178,2]
[362372907,1748226632860,-430.0,0.00019178,2]
[362372908,1748226632870,-354.15520111,0.00019178,2]
[362372909,1748226632880,-430.0,0.00019178,2]
[362372910,1748226632889,-357.54093102,0.00019178,2]
[362372911,1748226632898,-430.0,0.00019178,2]
[362372912,1748226632907,-430.0,0.00019178,2]
[362372913,1748226632918,-430.0,0.00019178,2]
[362372914,1748226632927,-534.04000877,0.00019178,2]
[362372915,1748226632936,-430.0,0.00019178,2]
[362372916,1748226632946,-430.0,0.00019178,2]
[362372917,1748226632955,-430.0,0.00019178,2]
[362372918,1748226632964,-430.0,0.00019178,2]
[362372919,1748226632973,-430.0,0.00019178,2]
[362372920,1748226632983,-461.01516362,0.00019178,2]
[362372921,1748226632993,-544.62658673,0.00019178,2]
[362372922,1748226633003,-430.0,0.00019178,2]
[362372923,1748226633012,-418.4218042,0.00019178,2]
[362372924,1748226633022,-410.83022871,0.00019178,2]
[362372925,1748226633032,-430.0,0.00019178,2]
[362372926,1748226633042,-430.0,0.00019178,2]
[362372927,1748226633052,-216.14077308,0.00019178,2]
[362372928,1748226633063,-530.0,0.00019178,2]
[362372929,1748226633072,-503.15226743,0.00019178,2]
[362372930,1748226633082,-533.01813027,0.00019178,2]
[362372931,1748226633091,-409.19657773,0.00019178,2]
[362372932,1748226633101,-432.50505906,0.00019178,2]
[362372933,1748226633111,-436.63904262,0.00019178,2]
[362372934,1748226633120,-510.83074434,0.00019178,2]
[362372935,1748226633131,-308.43371454,0.00019178,2]
[362372936,1748226633140,-455.17568068,0.00019178,2]
[362372937,1748226633150,-441.54871335,0.00019178,2]
[362372938,1748226633160,-430.0,0.00019178,2]
[362372939,1748226633170,-438.0377598,0.00019178,2]
[362372940,1748226633180,-430.0,0.00019178,2]
[362372941,1748226633190,-443.44514391,0.00019178,2]
[362372942,1748226633200,-446.33551326,0.00019178,2]
[362372943,1748226633209,-447.55275585,0.00019178,2]
[362372944,1748226633220,-235.31485109,0.00019178,2]
[362372945,1748226633230,-430.0,0.00019178,2]
[362372946,1748226633240,-430.0,0.00019178,2]
[362372947,1748226633250,-439.63371117,0.00019178,2]
[362372948,1748226633260,-430.0,0.00019178,2]
[362372949,1748226633269,-440.35023564,0.00019178,2]
[362372950,1748226633284,-435.62392556,0.00019178,2]
[362372951,1748226633294,-430.0,0.00019178,2]
[362372952,1748226633304,-430.0,0.00019178,2]
[362372953,1748226633314,-348.31122026,0.00019178,2]
[362372954,1748226633324,-593.78737562,0.00019178,2]
[362372955,1748226633334,-436.82048172,0.00019178,2]
[362372956,1748226633344,-356.36046866,0.00019178,2]
[362372957,1748226633356,-430.0,0.00019178,2]
[362372958,1748226633365,-430.0,0.00019178,2]
[362372959,1748226633375,-405.79818806,0.00019178,2]
[362372960,1748226633384,-432.61384717,0.00019178,2]
[362372961,1748226633394,-430.0,0.00019178,2]
[362372962,1748226633404,-430.0,0.00019178,2]
[362372963,1748226633413,-430.0,0.00019178,2]
[362372964,1748226633423,-431.73484069,0.00019178,2]
[362372965,1748226633432,-430.0,0.00019178,2]
[362372966,1748226633442,-430.0,0.00019178,2]
[362372967,1748226633451,-430.0,0.00019178,2]
[362372968,1748226633461,-442.34572658,0.00019178,2]
[362372969,1748226633471,-436.2260549,0.00019178,2]
[362372970,1748226633480,-430.0,0.00019178,2]
[362372971,1748226633490,-430.0,0.00019178,2]
[362372972,1748226633500,-430.0,0.00019178,2]
[362372973,1748226633510,-436.10339753,0.00019178,2]
[362372974,1748226633520,-434.25886517,0.00019178,2]
[362372975,1748226633530,-430.0,0.00019178,2]
[362372976,1748226633540,-430.0,0.00019178,2]
[362372977,1748226633550,-430.0,0.00019178,2]
[362372978,1748226633559,-430.0,0.00019178,2]
[362372979,1748226633569,-430.0,0.00019178,2]
[362372980,1748226633579,-438.56815262,0.00019178,2]
[362372981,1748226633588,-354.51084947,0.00019178,2]
[362372982,1748226633597,-430.0,0.00019178,2]
[362372983,1748226633607,-436.55073967,0.00019178,2]
[362372984,1748226633617,-430.0,0.00019178,2]
[362372985,1748226633628,-439.67829286,0.00019178,2]
[362372986,1748226633638,-430.0,0.00019178,2]
[362372987,1748226633648,-430.0,0.00019178,2]
[362372988,1748226633658,-430.0,0.00019178,2]
[362372989,1748226633668,-430.0,0.00019178,2]
[362372990,1748226633678,-293.44048431,0.00019178,2]
[362372991,1748226633688,-435.93830144,0.00019178,2]
[362372992,1748226633698,-434.834947,0.00019178,2]
[362372993,1748226633708,-430.0,0.00019178,2]
[362372994,1748226633718,-430.0,0.00019178,2]
[362372995,1748226633727,-416.48825688,0.00019178,2]
[362372996,1748226633738,-430.0,0.00019178,2]
[362372997,1748226633747,-430.0,0.00019178,2]
[362372998,1748226633758,-435.83809053,0.00019178,2]
[362372999,1748226633768,-430.0,0.00019178,2]
[362373000,1748226633778,-432.12761705,0.00019178,2]
[362373001,1748226633787,-403.41224234,0.00019178,2]
[362373002,1748226633797,-430.0,0.00019178,2]
[362373003,1748226633807,-454.43757342,0.00019178,2]
[362373004,1748226633816,-430.0,0.00019178,2]
[362373005,1748226633826,-430.0,0.00019178,2]
[362373006,1748226633836,-506.97360243,0.00019178,2]
[362373007,1748226633846,-430.0,0.00019178,2]
[362373008,1748226633856,-453.43870867,0.00019178,2]
[362373009,1748226633865,-430.0,0.00019178,2]
[362373010,1748226633874,-535.63811744,0.00019178,2]
[362373011,1748226633883,-434.336321,0.00019178,2]
[362373012,1748226633893,-433.75926222,0.00019178,2]
[362373013,1748226633903,-431.78694812,0.00019178,2]
[362373014,1748226633912,-441.39666371,0.00019178,2]
[362373015,1748226633922,-430.0,0.00019178,2]
[362373016,1748226633932,-433.65926922,0.00019178,2]
[362373017,1748226633941,-430.0,0.00019178,2]
[362373018,1748226633951,-437.38279166,0.00019178,2]
[362373019,1748226633960,-430.0,0.00019178,2]
[362373020,1748226633970,-438.19266144,0.00019178,2]
[362373021,1748226633980,-430.0,0.00019178,2]
[362373022,1748226633989,-430.0,0.00019178,2]
[362373023,1748226634000,-430.0,0.00019178,2]
[362373024,1748226634010,-430.0,0.00019178,2]
[362373025,1748226634020,-435.38093492,0.00019178,2]
[362373026,1748226634033,-445.21614332,0.00019178,2]
[362373027,1748226634042,-430.0,0.00019178,2]
[362373028,1748226634052,-430.0,0.00019178,2]
[362373029,1748226634062,-430.0,0.00019178,2]
[362373030,1748226634071,-430.0,0.00019178,2]
[362373031,1748226634080,-430.0,0.00019178,2]
[362373032,1748226634091,-427.96417408,0.00019178,2]
[362373033,1748226634101,-327.23668186,0.00019178,2]
[362373034,1748226634111,-431.95672273,0.00019178,2]
[362373035,1748226634121,-375.03083005,0.00019178,2]
[362373036,1748226634131,-430.0,0.00019178,2]
[362373037,1748226634142,-430.0,0.00019178,2]
[362373038,1748226634152,-504.87557463,0.00019178,2]
[362373039,1748226634162,-430.0,0.00019178,2]
[362373040,1748226634173,-430.0,0.00019178,2]
[362373041,1748226634183,-430.0,0.00019178,2]
[362373042,1748226634193,-430.0,0.00019178,2]
[362373043,1748226634333,-500.0,0.00019178,2]
[362373044,1748226634345,-500.0,0.00019178,2]
[362373045,1748226634356,-500.0,0.00019178,2]
[362373046,1748226634367,-430.0,0.00019178,2]
[362373047,1748226634376,-454.49709849,0.00019178,2]
[362373048,1748226634387,-500.0,0.00019178,2]
[362373049,1748226634397,-430.0,0.00019178,2]
[362373050,1748226634407,-500.0,0.00019178,2]
[362373051,1748226634418,-217.61334727,0.00019178,2]
[362373052,1748226634428,-500.0,0.00019178,2]
[362373053,1748226634438,-500.0,0.00019178,2]
[362373054,1748226634448,-500.0,0.00019178,2]
[362373055,1748226634458,-500.0,0.00019178,2]
[362373056,1748226634468,-500.0,0.00019178,2]
[362373057,1748226634478,-500.0,0.00019178,2]
[362373058,1748226634488,-430.0,0.00019178,2]
[362373059,1748226634498,-430.0,0.00019178,2]
[362373060,1748226634508,-430.0,0.00019178,2]
[362373061,1748226634518,-430.71755946,0.00019178,2]
[362373062,1748226634528,-502.04722992,0.00019178,2]
[362373063,1748226634538,-430.0,0.00019178,2]
[362373064,1748226634547,-430.0,0.00019178,2]
[362373065,1748226634558,-575.62627709,0.00019178,2]
[362373066,1748226634569,-430.0,0.00019178,2]
[362373067,1748226634578,-283.49436239,0.00019178,2]
[362373068,1748226634588,-430.0,0.00019178,2]
[362373069,1748226634598,-430.0,0.00019178,2]
[362373070,1748226634608,-430.0,0.00019178,2]
[362373071,1748226634618,-430.0,0.00019178,2]
[362373072,1748226634628,-465.39677554,0.00019178,2]
[362373073,1748226634638,-452.72322738,0.00019178,2]
[362373074,1748226634648,-430.0,0.00019178,2]
[362373075,1748226634658,-433.15696989,0.00019178,2]
[362373076,1748226634669,-430.0,0.00019178,2]
[362373077,1748226634680,-452.24656411,0.00019178,2]
[362373078,1748226634690,-458.9743215,0.00019178,2]
[362373079,1748226634699,-430.0,0.00019178,2]
[362373080,1748226634709,-437.73257034,0.00019178,2]
[362373081,1748226634719,-430.0,0.00019178,2]
[362373082,1748226634730,-402.2440334,0.00019178,2]
[362373083,1748226634740,-351.68566929,0.00019178,2]
[362373084,1748226634749,-430.0,0.00019178,2]
[362373085,1748226634759,-436.22715583,0.00019178,2]
[362373086,1748226634769,-430.0,0.00019178,2]
[362373087,1748226634779,-452.64438413,0.00019178,2]
[362373088,1748226634789,-430.0,0.00019178,2]
[362373089,1748226634799,-1011.83099455,0.00019178,2]
[362373090,1748226634810,-430.0,0.00019178,2]
[362373091,1748226634820,-441.50767033,0.00019178,2]
[362373092,1748226634830,-430.0,0.00019178,2]
[362373093,1748226634840,-430.0,0.00019178,2]
[362373094,1748226634849,-430.0,0.00019178,2]
[362373095,1748226634859,-434.21217023,0.00019178,2]
[362373096,1748226634869,-430.0,0.00019178,2]
[362373097,1748226634879,-430.0,0.00019178,2]
[362373098,1748226634890,-430.0,0.00019178,2]
[362373099,1748226634900,-187.27621636,0.00019178,2]
[362373100,1748226634910,-430.0,0.00019178,2]
[362373101,1748226634919,-236.91118354,0.00019178,2]
[362373102,1748226634929,-430.0,0.00019178,2]
[362373103,1748226634939,-500.0,0.00019178,2]
[362373104,1748226634948,-500.0,0.00019178,2]
[362373105,1748226634957,-500.0,0.00019178,2]
[362373106,1748226634966,-430.0,0.00019178,2]
[362373107,1748226634976,-430.0,0.00019178,2]
[362373108,1748226634985,-430.0,0.00019178,2]
[362373109,1748226634994,-430.0,0.00019178,2]
[362373110,1748226635003,-430.0,0.00019178,2]
[362373111,1748226635012,-430.0,0.00019178,2]
[362373112,1748226635022,-430.0,0.00019178,2]
[362373113,1748226635032,-430.0,0.00019178,2]
[362373114,1748226635042,-430.0,0.00019178,2]
[362373115,1748226635052,-430.0,0.00019178,2]
[362373116,1748226635061,-430.0,0.00019178,2]
[362373117,1748226635071,-436.70337561,0.00019178,2]